[Event "*** Titled Tuesday Blitz"]
[Site "Chess.com"]
[Date "2020.04.07"]
[Round "6"]
[White "Chessterra87"]
[Black "Rud_Makarian"]
[Result "0-1"]
[WhiteElo "2333"]
[BlackElo "2623"]
[TimeControl "180+1"]
[EndTime "14:07:16 PDT"]
[Termination "Rud_Makarian won by resignation"]

1. e4 {[%clk 0:03:00.9]} 1... e5 {[%clk 0:02:56.2]} 2. Bc4 {[%clk 0:03:00.5]}
2... Nc6 {[%clk 0:02:53.8]} 3. Nf3 {[%clk 0:03:00.1]} 3... Bc5 {[%clk
0:02:50.3]} 4. O-O {[%clk 0:02:59.6]} 4... Nf6 {[%clk 0:02:48.6]} 5. d3 {[%clk
0:02:59.2]} 5... d6 {[%clk 0:02:44]} 6. c3 {[%clk 0:02:53.7]} 6... a5 {[%clk
0:02:41.2]} 7. Bb3 {[%clk 0:02:51.3]} 7... h6 {[%clk 0:02:39.6]} 8. Nbd2 {[%clk
0:02:50.8]} 8... O-O {[%clk 0:02:36.7]} 9. Nc4 {[%clk 0:02:41]} 9... Be6 {[%clk
0:02:05.5]} 10. Ne3 {[%clk 0:02:31.7]} 10... Qd7 {[%clk 0:01:50.6]} 11. Nd5
{[%clk 0:02:15]} 11... Bxd5 {[%clk 0:01:45.7]} 12. exd5 {[%clk 0:02:13.8]} 12...
Ne7 {[%clk 0:01:44.1]} 13. d4 {[%clk 0:02:00.9]} 13... exd4 {[%clk 0:01:41.5]}
14. Nxd4 {[%clk 0:01:56.5]} 14... Nexd5 {[%clk 0:01:37.7]} 15. Qf3 {[%clk
0:01:49.8]} 15... Bxd4 {[%clk 0:01:31.5]} 16. cxd4 {[%clk 0:01:42.4]} 16... c6
{[%clk 0:01:31.7]} 17. Qg3 {[%clk 0:01:18.5]} 17... Nh5 {[%clk 0:01:18.5]} 18.
Qh4 {[%clk 0:01:06.2]} 18... Nhf6 {[%clk 0:01:18.6]} 19. Re1 {[%clk 0:01:03.5]}
19... Rfe8 {[%clk 0:01:15.4]} 20. Bd2 {[%clk 0:01:03.7]} 20... a4 {[%clk
0:01:08.6]} 21. Bc2 {[%clk 0:01:01.6]} 21... Qg4 {[%clk 0:01:02.3]} 22. Qxg4
{[%clk 0:00:48.8]} 22... Nxg4 {[%clk 0:01:03.2]} 23. Rxe8+ {[%clk 0:00:44.2]}
23... Rxe8 {[%clk 0:01:04.1]} 24. f3 {[%clk 0:00:40.6]} 24... Re2 {[%clk
0:01:02]} 25. Rd1 {[%clk 0:00:28.7]} 25... Nge3 {[%clk 0:01:01]} 26. Bxe3 {[%clk
0:00:20.3]} 26... Nxe3 {[%clk 0:00:57.7]} 27. Bd3 {[%clk 0:00:20.6]} 27... Rxg2+
{[%clk 0:00:55.7]} 28. Kh1 {[%clk 0:00:20.5]} 28... Nxd1 {[%clk 0:00:52.1]} 29.
Kxg2 {[%clk 0:00:20.9]} 29... Nxb2 {[%clk 0:00:53]} 30. Bc2 {[%clk 0:00:20.6]}
30... b5 {[%clk 0:00:52.6]} 31. Be4 {[%clk 0:00:18.5]} 31... d5 {[%clk
0:00:52.7]} 32. Bf5 {[%clk 0:00:18.4]} 32... Nc4 {[%clk 0:00:53.6]} 33. Bd7
{[%clk 0:00:18.6]} 33... Na5 {[%clk 0:00:53.5]} 34. Kf2 {[%clk 0:00:17.5]} 34...
Kf8 {[%clk 0:00:53.7]} 35. Ke3 {[%clk 0:00:18.4]} 35... Ke7 {[%clk 0:00:54.2]}
36. Bf5 {[%clk 0:00:18.5]} 36... g6 {[%clk 0:00:54.2]} 37. Bd3 {[%clk
0:00:18.7]} 37... f5 {[%clk 0:00:54.4]} 38. Kf4 {[%clk 0:00:18.9]} 38... Kf6
{[%clk 0:00:54.8]} 39. h4 {[%clk 0:00:19.2]} 39... g5+ {[%clk 0:00:54.3]} 40.
hxg5+ {[%clk 0:00:20.1]} 40... hxg5+ {[%clk 0:00:55.2]} 41. Ke3 {[%clk
0:00:20.6]} 41... Nc4+ {[%clk 0:00:55.4]} 42. Ke2 {[%clk 0:00:20.3]} 42... Nd6
{[%clk 0:00:52.9]} 43. Bc2 {[%clk 0:00:20.1]} 43... Ne8 {[%clk 0:00:52.8]} 44.
Bd3 {[%clk 0:00:19.7]} 44... Ng7 {[%clk 0:00:52.8]} 45. Bc2 {[%clk 0:00:18.9]}
45... Ne6 {[%clk 0:00:52.9]} 46. Kf2 {[%clk 0:00:19.1]} 46... Nxd4 {[%clk
0:00:52.7]} 47. Bxa4 {[%clk 0:00:20]} 47... bxa4 {[%clk 0:00:52.2]} 0-1

[Event "*** Titled Tuesday Blitz"]
[Site "Chess.com"]
[Date "2020.04.07"]
[Round "6"]
[White "eldur16"]
[Black "PowerThinking2650"]
[Result "1-0"]
[WhiteElo "2547"]
[BlackElo "2353"]
[TimeControl "180+1"]
[EndTime "14:07:18 PDT"]
[Termination "eldur16 won by checkmate"]

1. e4 {[%clk 0:03:00.9]} 1... e5 {[%clk 0:02:59.2]} 2. Nf3 {[%clk 0:03:00.4]}
2... Nc6 {[%clk 0:02:59.1]} 3. Bc4 {[%clk 0:03:00.2]} 3... Nf6 {[%clk
0:02:58.5]} 4. d3 {[%clk 0:02:57.9]} 4... h6 {[%clk 0:02:57.8]} 5. O-O {[%clk
0:02:57.5]} 5... d6 {[%clk 0:02:57.7]} 6. c3 {[%clk 0:02:56.6]} 6... g6 {[%clk
0:02:57.1]} 7. b4 {[%clk 0:02:48.7]} 7... Bg7 {[%clk 0:02:55.3]} 8. Nbd2 {[%clk
0:02:47.9]} 8... O-O {[%clk 0:02:54.5]} 9. Re1 {[%clk 0:02:44.9]} 9... a6 {[%clk
0:02:49.1]} 10. a4 {[%clk 0:02:43.9]} 10... d5 {[%clk 0:02:44.1]} 11. exd5
{[%clk 0:02:42.4]} 11... Nxd5 {[%clk 0:02:43.4]} 12. Ne4 {[%clk 0:02:37.5]}
12... Be6 {[%clk 0:02:22.8]} 13. Bd2 {[%clk 0:02:31.2]} 13... f5 {[%clk
0:02:18.3]} 14. Nc5 {[%clk 0:02:30.2]} 14... Bf7 {[%clk 0:02:00.2]} 15. Nxb7
{[%clk 0:02:28.3]} 15... Qc8 {[%clk 0:01:44.9]} 16. Nc5 {[%clk 0:02:26.6]} 16...
Kh7 {[%clk 0:01:37.5]} 17. a5 {[%clk 0:02:24]} 17... e4 {[%clk 0:01:36.8]} 18.
dxe4 {[%clk 0:02:20.7]} 18... fxe4 {[%clk 0:01:08.6]} 19. Nxe4 {[%clk
0:02:14.5]} 19... Nxc3 {[%clk 0:00:53.8]} 20. Bxc3 {[%clk 0:02:09]} 20... Bxc4
{[%clk 0:00:53.6]} 21. Bxg7 {[%clk 0:02:06.4]} 21... Kxg7 {[%clk 0:00:53.3]} 22.
Rc1 {[%clk 0:01:56]} 22... Bb5 {[%clk 0:00:46.2]} 23. Nc5 {[%clk 0:01:51.7]}
23... Rf7 {[%clk 0:00:27.9]} 24. Ne6+ {[%clk 0:01:40.3]} 24... Kh7 {[%clk
0:00:26]} 25. Qd5 {[%clk 0:01:23.9]} 25... Qd7 {[%clk 0:00:22.2]} 26. Qe4 {[%clk
0:01:14.5]} 26... Re8 {[%clk 0:00:17]} 27. Neg5+ {[%clk 0:01:10.9]} 27... hxg5
{[%clk 0:00:16.6]} 28. Nxg5+ {[%clk 0:01:10.5]} 28... Kg7 {[%clk 0:00:15.5]} 29.
Qxe8 {[%clk 0:01:10.1]} 29... Qxe8 {[%clk 0:00:14.6]} 30. Rxe8 {[%clk
0:01:09.7]} 30... Nxb4 {[%clk 0:00:11]} 31. Rc8 {[%clk 0:01:00.5]} 31... Rf5
{[%clk 0:00:08.3]} 32. R8xc7+ {[%clk 0:00:57.5]} 32... Kf6 {[%clk 0:00:06.2]}
33. Ne4+ {[%clk 0:00:54.6]} 33... Ke5 {[%clk 0:00:05.9]} 34. f3 {[%clk
0:00:54.4]} 34... Kd4 {[%clk 0:00:05.6]} 35. Rg7 {[%clk 0:00:48.9]} 35... Nd3
{[%clk 0:00:04.8]} 36. Rd1 {[%clk 0:00:47.6]} 36... Ke3 {[%clk 0:00:04.8]} 37.
Re7 {[%clk 0:00:43.2]} 37... Ke2 {[%clk 0:00:02.2]} 38. Nc3# {[%clk 0:00:42.2]}
1-0

[Event "*** Titled Tuesday Blitz"]
[Site "Chess.com"]
[Date "2020.04.07"]
[Round "6"]
[White "TastyFrenchFries"]
[Black "Mizner"]
[Result "0-1"]
[WhiteElo "2411"]
[BlackElo "2554"]
[TimeControl "180+1"]
[EndTime "14:07:19 PDT"]
[Termination "Mizner won by resignation"]

1. e4 {[%clk 0:01:58.4]} 1... e6 {[%clk 0:02:59.9]} 2. d4 {[%clk 0:01:58.3]}
2... d5 {[%clk 0:03:00.8]} 3. e5 {[%clk 0:01:58.8]} 3... c5 {[%clk 0:03:00.3]}
4. c3 {[%clk 0:01:59.5]} 4... Nc6 {[%clk 0:03:00.9]} 5. Nf3 {[%clk 0:01:59.9]}
5... Qb6 {[%clk 0:03:01.5]} 6. a3 {[%clk 0:02:00.5]} 6... f6 {[%clk 0:03:00.6]}
7. exf6 {[%clk 0:01:56.3]} 7... Nxf6 {[%clk 0:03:00.1]} 8. Be2 {[%clk
0:01:56.9]} 8... Bd6 {[%clk 0:02:58.3]} 9. O-O {[%clk 0:01:53.2]} 9... O-O
{[%clk 0:02:58.3]} 10. dxc5 {[%clk 0:01:50.7]} 10... Bxc5 {[%clk 0:02:57.5]} 11.
b4 {[%clk 0:01:49.3]} 11... Bd6 {[%clk 0:02:56.7]} 12. Be3 {[%clk 0:01:46]}
12... Qc7 {[%clk 0:02:55.4]} 13. h3 {[%clk 0:01:45.3]} 13... e5 {[%clk
0:02:44.2]} 14. Qb3 {[%clk 0:01:34.8]} 14... Kh8 {[%clk 0:02:29.5]} 15. Rd1
{[%clk 0:01:16.6]} 15... Be6 {[%clk 0:02:24.3]} 16. Qb2 {[%clk 0:01:15.9]} 16...
Bg8 {[%clk 0:02:10.6]} 17. Nbd2 {[%clk 0:01:12.3]} 17... Rae8 {[%clk 0:02:06.6]}
18. Nb3 {[%clk 0:01:10.9]} 18... e4 {[%clk 0:02:04.6]} 19. Nfd4 {[%clk
0:01:10.4]} 19... Bh2+ {[%clk 0:02:00.3]} 20. Kh1 {[%clk 0:01:09.7]} 20... Bf4
{[%clk 0:02:00.1]} 21. Qd2 {[%clk 0:00:59.9]} 21... g5 {[%clk 0:01:49]} 22. Nxc6
{[%clk 0:00:51.3]} 22... bxc6 {[%clk 0:01:48]} 23. g3 {[%clk 0:00:33.4]} 23...
Bxe3 {[%clk 0:01:35.2]} 24. Qxe3 {[%clk 0:00:34.3]} 24... h6 {[%clk 0:01:33.7]}
25. Nc5 {[%clk 0:00:20.4]} 25... Nd7 {[%clk 0:01:21.9]} 26. Kg1 {[%clk
0:00:19.4]} 26... Ne5 {[%clk 0:01:21]} 27. c4 {[%clk 0:00:17.9]} 27... Nf3+
{[%clk 0:01:18.5]} 28. Kg2 {[%clk 0:00:17.6]} 28... Qe5 {[%clk 0:01:13.6]} 29.
Rac1 {[%clk 0:00:16.5]} 29... Re7 {[%clk 0:01:12.8]} 30. cxd5 {[%clk 0:00:16.1]}
30... cxd5 {[%clk 0:01:13]} 31. Nb3 {[%clk 0:00:16]} 31... Qf6 {[%clk
0:01:04.8]} 32. Nd4 {[%clk 0:00:15.4]} 32... Ne5 {[%clk 0:00:59.1]} 33. Rf1
{[%clk 0:00:10.9]} 33... Nf3 {[%clk 0:00:39.4]} 34. Rc6 {[%clk 0:00:10]} 34...
Qxd4 {[%clk 0:00:38.2]} 35. Qxd4+ {[%clk 0:00:09.4]} 35... Nxd4 {[%clk
0:00:37.9]} 36. Rxh6+ {[%clk 0:00:10.3]} 36... Kg7 {[%clk 0:00:38.3]} 37. Ra6
{[%clk 0:00:09.4]} 37... Nxe2 {[%clk 0:00:38.1]} 38. Rd1 {[%clk 0:00:09.9]} 0-1

[Event "*** Titled Tuesday Blitz"]
[Site "Chess.com"]
[Date "2020.04.07"]
[Round "6"]
[White "nihalsarin"]
[Black "Zavgorodniy_Serg"]
[Result "1/2-1/2"]
[WhiteElo "3076"]
[BlackElo "2708"]
[TimeControl "180+1"]
[EndTime "14:07:20 PDT"]
[Termination "Game drawn by repetition"]

1. e4 {[%clk 0:03:00.9]} 1... e5 {[%clk 0:02:58.3]} 2. Nf3 {[%clk 0:03:00.7]}
2... d6 {[%clk 0:02:58.4]} 3. d4 {[%clk 0:02:59.3]} 3... exd4 {[%clk 0:02:58.7]}
4. Nxd4 {[%clk 0:03:00.2]} 4... Nf6 {[%clk 0:02:58.6]} 5. Nc3 {[%clk 0:02:56.9]}
5... Be7 {[%clk 0:02:58.7]} 6. g3 {[%clk 0:02:48.4]} 6... O-O {[%clk 0:02:58.2]}
7. Bg2 {[%clk 0:02:48.8]} 7... Re8 {[%clk 0:02:57.6]} 8. O-O {[%clk 0:02:48.6]}
8... c6 {[%clk 0:02:57.6]} 9. h3 {[%clk 0:02:45.7]} 9... Bf8 {[%clk 0:02:56.9]}
10. b3 {[%clk 0:02:43.5]} 10... a5 {[%clk 0:02:56.2]} 11. a4 {[%clk 0:02:42.2]}
11... Na6 {[%clk 0:02:55.8]} 12. Bb2 {[%clk 0:02:42.7]} 12... Nb4 {[%clk
0:02:53.7]} 13. Qd2 {[%clk 0:02:41.1]} 13... d5 {[%clk 0:02:41.8]} 14. exd5
{[%clk 0:02:38.3]} 14... cxd5 {[%clk 0:02:24.4]} 15. Rfe1 {[%clk 0:02:36.4]}
15... Bd7 {[%clk 0:02:03.2]} 16. Rxe8 {[%clk 0:02:31.1]} 16... Bxe8 {[%clk
0:01:59.3]} 17. Re1 {[%clk 0:02:31.6]} 17... Rc8 {[%clk 0:01:51.1]} 18. Ncb5
{[%clk 0:02:13.2]} 18... Bd7 {[%clk 0:01:30.6]} 19. c3 {[%clk 0:02:02.5]} 19...
Nc6 {[%clk 0:01:29.4]} 20. Ne2 {[%clk 0:01:48.4]} 20... Bc5 {[%clk 0:01:17.2]}
21. Nf4 {[%clk 0:01:20.6]} 21... Ne4 {[%clk 0:01:15.3]} 22. Bxe4 {[%clk
0:01:18.9]} 22... dxe4 {[%clk 0:01:15.8]} 23. Rxe4 {[%clk 0:01:19.5]} 23... Bf5
{[%clk 0:00:46.9]} 24. Re2 {[%clk 0:01:13.1]} 24... Qg5 {[%clk 0:00:42.1]} 25.
Kh2 {[%clk 0:00:50]} 25... h5 {[%clk 0:00:38.6]} 26. h4 {[%clk 0:00:46.2]} 26...
Qg4 {[%clk 0:00:37.8]} 27. Kg2 {[%clk 0:00:31.7]} 27... Rd8 {[%clk 0:00:32.7]}
28. Qe1 {[%clk 0:00:18.8]} 28... Rd3 {[%clk 0:00:29.2]} 29. Nxd3 {[%clk
0:00:13.2]} 29... Qh3+ {[%clk 0:00:27.3]} 30. Kf3 {[%clk 0:00:09.8]} 30... Qg4+
{[%clk 0:00:24.6]} 31. Kg2 {[%clk 0:00:10.3]} 31... Qh3+ {[%clk 0:00:24.7]} 32.
Kf3 {[%clk 0:00:10.9]} 32... Qg4+ {[%clk 0:00:24.6]} 33. Kg2 {[%clk 0:00:11.2]}
1/2-1/2

[Event "*** Titled Tuesday Blitz"]
[Site "Chess.com"]
[Date "2020.04.07"]
[Round "6"]
[White "HiHaruka"]
[Black "MixMasterChess"]
[Result "1-0"]
[WhiteElo "2279"]
[BlackElo "2107"]
[TimeControl "180+1"]
[EndTime "14:07:22 PDT"]
[Termination "HiHaruka won on time"]

1. d4 {[%clk 0:03:00.9]} 1... d5 {[%clk 0:02:59.6]} 2. c4 {[%clk 0:02:59.7]}
2... c6 {[%clk 0:02:59.6]} 3. Nf3 {[%clk 0:02:59.8]} 3... Nf6 {[%clk 0:03:00.1]}
4. g3 {[%clk 0:02:59.4]} 4... dxc4 {[%clk 0:02:58.1]} 5. Bg2 {[%clk 0:02:59]}
5... g6 {[%clk 0:02:58.7]} 6. O-O {[%clk 0:02:58.4]} 6... Bg7 {[%clk 0:02:58.5]}
7. Ne5 {[%clk 0:02:58.7]} 7... Ng4 {[%clk 0:02:58.4]} 8. Nf3 {[%clk 0:02:46.8]}
8... O-O {[%clk 0:02:35.3]} 9. e3 {[%clk 0:02:39.7]} 9... Nd7 {[%clk 0:02:29.5]}
10. Nfd2 {[%clk 0:02:15.3]} 10... Nb6 {[%clk 0:02:17]} 11. Na3 {[%clk
0:02:14.3]} 11... Be6 {[%clk 0:02:12]} 12. Re1 {[%clk 0:01:35.3]} 12... Nh6
{[%clk 0:02:03.5]} 13. Qc2 {[%clk 0:01:28.6]} 13... Bd5 {[%clk 0:01:26]} 14.
Naxc4 {[%clk 0:01:10.7]} 14... Bxg2 {[%clk 0:01:25]} 15. Kxg2 {[%clk 0:00:56.1]}
15... Qd5+ {[%clk 0:01:21.7]} 16. f3 {[%clk 0:00:50.1]} 16... Nf5 {[%clk
0:01:05.2]} 17. b3 {[%clk 0:00:37.6]} 17... c5 {[%clk 0:00:49.5]} 18. Bb2 {[%clk
0:00:34.4]} 18... cxd4 {[%clk 0:00:36.3]} 19. e4 {[%clk 0:00:31.9]} 19... d3
{[%clk 0:00:35.8]} 20. Qc1 {[%clk 0:00:25.6]} 20... Bxb2 {[%clk 0:00:19.9]} 21.
Qxb2 {[%clk 0:00:25.2]} 21... Nxc4 {[%clk 0:00:20.2]} 22. Nxc4 {[%clk
0:00:20.5]} 22... Nh4+ {[%clk 0:00:16.3]} 23. gxh4 {[%clk 0:00:19.6]} 23... Qh5
{[%clk 0:00:16.1]} 24. Qf2 {[%clk 0:00:18.1]} 24... b5 {[%clk 0:00:12.3]} 25.
Ne3 {[%clk 0:00:16.6]} 25... Rfd8 {[%clk 0:00:11.9]} 26. Nd5 {[%clk 0:00:16.2]}
26... e6 {[%clk 0:00:10.9]} 27. Nf6+ {[%clk 0:00:16.2]} 1-0

[Event "*** Titled Tuesday Blitz"]
[Site "Chess.com"]
[Date "2020.04.07"]
[Round "6"]
[White "Gajuchess"]
[Black "pedromartinez91"]
[Result "1-0"]
[WhiteElo "2682"]
[BlackElo "2501"]
[TimeControl "180+1"]
[EndTime "14:07:24 PDT"]
[Termination "Gajuchess won by resignation"]

1. d4 {[%clk 0:03:00.9]} 1... Nf6 {[%clk 0:02:55.8]} 2. Nf3 {[%clk 0:03:00.9]}
2... e6 {[%clk 0:02:53]} 3. g3 {[%clk 0:03:01.3]} 3... b6 {[%clk 0:02:52.6]} 4.
Bg2 {[%clk 0:03:01.4]} 4... Bb7 {[%clk 0:02:53.5]} 5. c4 {[%clk 0:03:01.1]} 5...
Be7 {[%clk 0:02:53.9]} 6. O-O {[%clk 0:03:01.2]} 6... O-O {[%clk 0:02:54.5]} 7.
Nc3 {[%clk 0:03:01.5]} 7... Na6 {[%clk 0:02:51.7]} 8. d5 {[%clk 0:02:51.9]} 8...
Bb4 {[%clk 0:02:49.5]} 9. Bg5 {[%clk 0:02:45.4]} 9... Bxc3 {[%clk 0:02:44.9]}
10. bxc3 {[%clk 0:02:45]} 10... h6 {[%clk 0:02:45.4]} 11. Bh4 {[%clk 0:02:44.6]}
11... Nc5 {[%clk 0:02:29.6]} 12. Qd4 {[%clk 0:02:44.6]} 12... d6 {[%clk
0:02:27.9]} 13. Bxf6 {[%clk 0:02:16.3]} 13... Qxf6 {[%clk 0:02:26.8]} 14. Qxf6
{[%clk 0:02:16.6]} 14... gxf6 {[%clk 0:02:27.7]} 15. Nd4 {[%clk 0:02:17.5]}
15... e5 {[%clk 0:01:55.5]} 16. Nf5 {[%clk 0:02:11.8]} 16... Bc8 {[%clk
0:01:54.9]} 17. Ne3 {[%clk 0:02:07.5]} 17... Re8 {[%clk 0:01:44.2]} 18. g4
{[%clk 0:02:05.2]} 18... Bd7 {[%clk 0:01:38.5]} 19. h3 {[%clk 0:01:48.6]} 19...
a6 {[%clk 0:01:37.5]} 20. Rfb1 {[%clk 0:01:45.1]} 20... b5 {[%clk 0:01:35.2]}
21. f3 {[%clk 0:01:34.1]} 21... Reb8 {[%clk 0:01:31.5]} 22. Kf2 {[%clk 0:01:32]}
22... Rb6 {[%clk 0:01:31.3]} 23. Rb4 {[%clk 0:01:21.1]} 23... a5 {[%clk
0:01:23.7]} 24. Rb2 {[%clk 0:01:20.2]} 24... b4 {[%clk 0:01:24]} 25. cxb4 {[%clk
0:01:12]} 25... axb4 {[%clk 0:01:24.9]} 26. Rab1 {[%clk 0:01:11.3]} 26... Kf8
{[%clk 0:00:29.8]} 27. Bf1 {[%clk 0:01:10.3]} 27... Ke7 {[%clk 0:00:28.2]} 28.
Kg3 {[%clk 0:01:10.2]} 28... Ra3 {[%clk 0:00:26]} 29. Nc2 {[%clk 0:01:10.2]}
29... Ne4+ {[%clk 0:00:25.6]} 30. Kh4 {[%clk 0:01:09.2]} 30... Nc3 {[%clk
0:00:17.8]} 31. Nxa3 {[%clk 0:01:08.5]} 31... bxa3 {[%clk 0:00:15.8]} 32. Rxb6
{[%clk 0:01:08]} 32... cxb6 {[%clk 0:00:16.7]} 33. Rb3 {[%clk 0:00:59.2]} 33...
Nxa2 {[%clk 0:00:16.5]} 34. Rxa3 {[%clk 0:00:59.4]} 34... Nb4 {[%clk 0:00:15.2]}
35. Rb3 {[%clk 0:00:56.5]} 35... Nc2 {[%clk 0:00:14.3]} 36. Kg3 {[%clk
0:00:56.3]} 36... f5 {[%clk 0:00:13.2]} 37. gxf5 {[%clk 0:00:55.5]} 37... Bxf5
{[%clk 0:00:14.1]} 38. e4 {[%clk 0:00:55]} 38... Bd7 {[%clk 0:00:13.5]} 39. Rxb6
{[%clk 0:00:54.3]} 39... f5 {[%clk 0:00:13.7]} 40. exf5 {[%clk 0:00:53.7]} 40...
Bxf5 {[%clk 0:00:14.6]} 41. c5 {[%clk 0:00:54]} 41... dxc5 {[%clk 0:00:14.3]}
42. d6+ {[%clk 0:00:54.4]} 42... Ke6 {[%clk 0:00:14.7]} 43. Bc4+ {[%clk
0:00:54.4]} 43... Kd7 {[%clk 0:00:15.6]} 44. Bb5+ {[%clk 0:00:54.1]} 44... Ke6
{[%clk 0:00:15.3]} 45. d7+ {[%clk 0:00:54.5]} 45... Ke7 {[%clk 0:00:15.9]} 46.
Rb8 {[%clk 0:00:54]} 46... Bxd7 {[%clk 0:00:14.9]} 47. Rb7 {[%clk 0:00:54.3]}
1-0

[Event "*** Titled Tuesday Blitz"]
[Site "Chess.com"]
[Date "2020.04.07"]
[Round "6"]
[White "vova-79"]
[Black "Ovsiannikov_Maxim"]
[Result "1/2-1/2"]
[WhiteElo "2420"]
[BlackElo "2228"]
[TimeControl "180+1"]
[EndTime "14:07:24 PDT"]
[Termination "Game drawn by stalemate"]

1. d4 {[%clk 0:03:00.9]} 1... d5 {[%clk 0:02:59.6]} 2. c4 {[%clk 0:03:00.2]}
2... Nc6 {[%clk 0:03:00]} 3. cxd5 {[%clk 0:02:59.4]} 3... Qxd5 {[%clk
0:02:59.7]} 4. e3 {[%clk 0:02:59.2]} 4... e5 {[%clk 0:03:00]} 5. Nc3 {[%clk
0:02:59.3]} 5... Bb4 {[%clk 0:03:00.5]} 6. Bd2 {[%clk 0:02:58.7]} 6... Bxc3
{[%clk 0:03:00.3]} 7. Bxc3 {[%clk 0:02:59.6]} 7... exd4 {[%clk 0:02:59.5]} 8.
Ne2 {[%clk 0:03:00.2]} 8... Nf6 {[%clk 0:02:59.5]} 9. Nxd4 {[%clk 0:03:00]} 9...
Nxd4 {[%clk 0:02:59.7]} 10. Qxd4 {[%clk 0:02:59.3]} 10... Be6 {[%clk 0:03:00.1]}
11. Qxd5 {[%clk 0:02:50]} 11... Bxd5 {[%clk 0:02:58.9]} 12. f3 {[%clk
0:02:47.6]} 12... b6 {[%clk 0:02:58.5]} 13. e4 {[%clk 0:02:42.2]} 13... Bb7
{[%clk 0:02:57.8]} 14. Bc4 {[%clk 0:02:39.6]} 14... Ke7 {[%clk 0:02:57.7]} 15.
O-O-O {[%clk 0:02:35]} 15... Rhd8 {[%clk 0:02:57.7]} 16. Rxd8 {[%clk 0:02:33.9]}
16... Rxd8 {[%clk 0:02:57.1]} 17. Rd1 {[%clk 0:02:34.3]} 17... Rxd1+ {[%clk
0:02:56.8]} 18. Kxd1 {[%clk 0:02:35.2]} 18... g6 {[%clk 0:02:55.3]} 19. Ke2
{[%clk 0:02:34]} 19... Ne8 {[%clk 0:02:53.7]} 20. Ke3 {[%clk 0:02:25.9]} 20...
Nd6 {[%clk 0:02:53.7]} 21. Be2 {[%clk 0:02:23.2]} 21... c5 {[%clk 0:02:53.2]}
22. g4 {[%clk 0:02:19.4]} 22... f6 {[%clk 0:02:53.5]} 23. e5 {[%clk 0:02:13]}
23... fxe5 {[%clk 0:02:50.1]} 24. Bxe5 {[%clk 0:02:13.6]} 24... Bd5 {[%clk
0:02:47.5]} 25. b3 {[%clk 0:02:09.9]} 25... a5 {[%clk 0:02:37.9]} 26. Kf4 {[%clk
0:01:57.2]} 26... h6 {[%clk 0:02:30]} 27. h4 {[%clk 0:01:53.8]} 27... a4 {[%clk
0:02:27.6]} 28. Bd1 {[%clk 0:01:53]} 28... axb3 {[%clk 0:02:27.1]} 29. axb3
{[%clk 0:01:52.7]} 29... b5 {[%clk 0:02:22.3]} 30. Bg7 {[%clk 0:01:50.8]} 30...
Nf7 {[%clk 0:02:20.8]} 31. Bc2 {[%clk 0:01:46.5]} 31... g5+ {[%clk 0:02:18.1]}
32. hxg5 {[%clk 0:01:44.6]} 32... hxg5+ {[%clk 0:02:18.4]} 33. Ke3 {[%clk
0:01:44.8]} 33... c4 {[%clk 0:02:18]} 34. b4 {[%clk 0:01:41.5]} 34... Nd8 {[%clk
0:02:04.7]} 35. Be5 {[%clk 0:01:19.1]} 35... Nc6 {[%clk 0:02:03]} 36. Bc3 {[%clk
0:01:18]} 36... Kf7 {[%clk 0:01:58.5]} 37. f4 {[%clk 0:01:16.4]} 37... gxf4+
{[%clk 0:01:56.6]} 38. Kxf4 {[%clk 0:01:17.3]} 38... Nd8 {[%clk 0:01:45.6]} 39.
Ke5 {[%clk 0:01:14.2]} 39... Bf3 {[%clk 0:01:41.7]} 40. g5 {[%clk 0:01:11.9]}
40... Bh5 {[%clk 0:01:42]} 41. Kd6 {[%clk 0:01:06.5]} 41... Bg6 {[%clk
0:01:36.9]} 42. Bd1 {[%clk 0:01:04.4]} 42... Ne6 {[%clk 0:01:33]} 43. Bf6 {[%clk
0:00:54.7]} 43... Nf4 {[%clk 0:01:31.6]} 44. Kc5 {[%clk 0:00:47.8]} 44... Bd3
{[%clk 0:01:29]} 45. Bc3 {[%clk 0:00:38.7]} 45... Ne6+ {[%clk 0:01:22.7]} 46.
Kxb5 {[%clk 0:00:37.5]} 46... Nxg5 {[%clk 0:01:23.3]} 47. Kc5 {[%clk 0:00:21.8]}
47... Ne4+ {[%clk 0:01:22.9]} 48. Kd4 {[%clk 0:00:22]} 48... Nxc3 {[%clk
0:01:20.2]} 49. Kxc3 {[%clk 0:00:21.6]} 49... Ke6 {[%clk 0:01:18.2]} 50. Kd4
{[%clk 0:00:21.6]} 50... Kd6 {[%clk 0:01:18]} 51. Bf3 {[%clk 0:00:20.3]} 51...
Bf1 {[%clk 0:01:15.5]} 52. Be4 {[%clk 0:00:19]} 52... Kc7 {[%clk 0:01:15.6]} 53.
Bd5 {[%clk 0:00:17.6]} 53... Kb6 {[%clk 0:01:15.4]} 54. Bxc4 {[%clk 0:00:17.6]}
54... Bxc4 {[%clk 0:01:15.2]} 55. Kxc4 {[%clk 0:00:17.7]} 55... Kc6 {[%clk
0:01:15.6]} 56. b5+ {[%clk 0:00:17.8]} 56... Kb6 {[%clk 0:01:15.8]} 57. Kb4
{[%clk 0:00:18.3]} 57... Kb7 {[%clk 0:01:16.2]} 58. Kc5 {[%clk 0:00:18.9]} 58...
Kc7 {[%clk 0:01:16.5]} 59. b6+ {[%clk 0:00:19.6]} 59... Kb7 {[%clk 0:01:16.5]}
60. Kb5 {[%clk 0:00:20.2]} 60... Kb8 {[%clk 0:01:16.9]} 61. Kc6 {[%clk 0:00:21]}
61... Kc8 {[%clk 0:01:17.2]} 62. b7+ {[%clk 0:00:21.6]} 62... Kb8 {[%clk
0:01:17.5]} 63. Kb6 {[%clk 0:00:22.5]} 1/2-1/2